bitfinex-derivatives/quotes_BNBF0:USTF0_20250904
["timestamp","ask_amount","ask_price","bid_price","bid_amount"]
[1756990879985,0.71855945,848.91,847.95,0.79233698]
[1756990880182,0.71855945,848.91,847.94,0.79233698]
[1756990880482,0.20499951,848.92,847.94,0.79233698]
[1756990882780,0.92379796,848.92,847.94,0.79233698]
[1756990883588,1.71468598,848.92,847.95,0.79233698]
[1756990883787,0.71879845,848.91,847.94,0.79233698]
[1756990883987,0.92379796,848.92,847.94,0.79233698]
[1756990884489,1.71468598,848.92,847.95,0.79233698]
[1756990884688,0.71879845,848.91,847.95,0.79233698]
[1756990884884,0.71879845,848.91,847.93,0.79236556]
[1756990885189,0.20499951,848.92,847.93,0.79236556]
[1756990885489,0.92379796,848.92,847.93,0.79236556]
[1756990885690,0.71879845,848.91,847.93,0.79236556]
[1756990885886,0.20499951,848.92,847.93,0.79236556]
[1756990887387,0.20499951,848.92,847.94,0.79236556]
[1756990887786,0.20499951,848.92,847.93,0.79236556]
[1756990887986,0.92379796,848.92,847.93,0.79236556]
[1756990888191,0.71879845,848.91,847.93,0.79236556]
[1756990888687,0.20499951,848.92,847.93,0.79236556]
[1756990889093,0.20499951,848.92,847.92,0.79236556]
[1756990889990,0.20499951,848.92,847.91,0.79236556]
[1756990890488,0.92379796,848.92,847.93,0.79236556]
[1756990890689,0.71879845,848.91,847.93,0.79236556]
[1756990891791,0.20499951,848.92,847.93,0.79236556]
[1756990892296,0.92379796,848.92,847.93,0.79236556]
[1756990893194,0.71879845,848.91,847.93,0.79236556]
[1756990893393,0.20499951,848.92,847.96,0.79236556]
[1756990893594,0.92379796,848.92,847.96,0.79236556]
[1756990893795,0.71879845,848.91,847.96,0.79236556]
[1756990893992,0.20499951,848.92,847.96,0.79236556]
[1756990894794,0.20499951,848.92,847.97,0.79236556]
[1756990895498,0.20499951,848.92,847.98,0.79236556]
[1756990895698,1.71426288,848.92,847.99,0.79236556]
[1756990895994,0.71879845,848.91,847.99,0.79236556]
[1756990896298,1.50926337,848.91,847.99,0.79236556]
[1756990896497,0.71879845,848.9,848.0,0.79236556]
[1756990896697,0.71879845,848.91,848.0,0.79236556]
[1756990897297,0.71879845,848.91,848.01,0.79236556]
[1756990897498,0.71879845,848.91,848.02,0.79236556]
[1756990897692,1.71426288,848.92,848.03,0.79236556]
[1756990897995,0.71879845,848.91,848.03,0.79236556]
[1756990898194,0.71879845,848.91,848.05,0.79236556]
[1756990898592,0.92379796,848.92,848.05,0.79236556]
[1756990898800,0.79046492,848.88,848.02,0.79236556]
[1756990898997,0.92379796,848.92,848.02,0.79236556]
[1756990898998,1.50926337,848.87,848.02,0.79236556]
[1756990899195,0.79046492,848.85,848.02,0.79236556]
[1756990899394,0.71879845,848.84,848.02,0.79236556]
[1756990900098,0.71879845,848.84,848.0,0.79236556]
[1756990900294,0.71879845,848.87,848.0,0.79236556]
[1756990900501,1.50926337,848.87,848.0,0.79236556]
[1756990900798,0.71879845,848.86,848.0,0.79236556]
[1756990901195,0.71879845,848.86,847.78,1.0607609]
[1756990901196,0.71879845,848.86,848.02,0.79236556]
[1756990902501,1.50926337,848.86,848.02,0.79236556]
[1756990902701,0.71879845,848.85,848.02,0.79236556]
[1756990903001,1.50926337,848.85,848.03,0.79236556]
[1756990903201,0.71879845,848.84,848.03,0.79236556]
[1756990903397,0.205072,848.65,848.03,0.79236556]
[1756990904498,0.205072,848.65,848.04,0.79236556]
[1756990904999,0.205072,848.65,848.02,0.79236556]
[1756990906404,0.205072,848.65,848.03,0.79236556]
[1756990908502,0.205072,848.65,848.04,0.79236556]
[1756990909402,0.205072,848.65,848.05,0.79236556]
[1756990909911,0.205072,848.65,847.53,0.20501099]
[1756990909912,0.205072,848.65,848.07,0.79236556]
[1756990910605,0.205072,848.65,848.12,0.79236556]
[1756990911005,0.205072,848.65,848.13,0.79236556]
[1756990911409,0.205072,848.65,847.53,0.20501099]
[1756990911410,0.205072,848.65,848.12,0.79236556]
[1756990912106,0.205072,848.65,848.11,0.79236556]
[1756990912310,0.205072,848.65,848.09,0.79236556]
[1756990913806,0.205072,848.65,848.1,0.79236556]
[1756990914908,0.205072,848.65,848.11,0.79236556]
[1756990916515,0.205072,848.65,848.11,0.7940384]
[1756990918418,0.205072,848.65,848.12,0.7940384]
[1756990919417,0.205072,848.65,848.11,0.7940384]
[1756990919720,0.205072,848.65,848.08,0.7940384]
[1756990920317,0.205072,848.65,848.09,0.7940384]
[1756990922122,0.205072,848.65,848.14,0.7940384]
[1756990922618,0.205072,848.65,848.05,0.7940384]
[1756990924520,0.205072,848.65,848.06,0.7940384]
[1756990925025,0.205072,848.65,847.94,0.7940384]
[1756990925420,0.205072,848.65,847.95,0.7940384]
[1756990927122,0.205072,848.65,847.94,0.7940384]
[1756990931532,0.205072,848.65,847.93,0.7940384]
[1756990931732,0.205072,848.65,847.94,0.7940384]
[1756990932729,0.205072,848.65,848.08,0.7940384]
[1756990932930,0.205072,848.65,848.14,0.7940384]
[1756990933528,0.92576525,848.65,848.14,0.7940384]
[1756990933830,0.72069325,848.64,848.13,0.7940384]
[1756990934033,0.205072,848.65,848.13,0.7940384]
[1756990934931,0.205072,848.65,848.15,0.7940384]
[1756990936433,0.92576525,848.65,847.95,1.0607609]
[1756990936634,0.72069325,848.64,848.14,0.79448939]
[1756990936834,0.205072,848.65,848.14,0.79448939]
[1756990937430,0.205072,848.65,848.13,0.79448939]
[1756990939834,0.205072,848.65,848.12,0.79448939]
[1756990940234,0.205072,848.65,848.1,0.79448939]
[1756990940634,0.92575994,848.65,848.1,0.79448939]
[1756990940832,0.205072,848.65,848.1,0.79448939]
[1756990941432,0.205072,848.65,848.06,0.79448939]
[1756990941733,0.205072,848.65,848.05,0.79448939]
[1756990942437,0.205072,848.65,848.01,0.79448939]
[1756990943738,0.92567001,848.65,848.01,0.79448939]
[1756990943935,0.72059801,848.64,848.03,0.79448939]
[1756990944436,0.72059801,848.64,848.02,0.79448939]
[1756990944933,0.205072,848.65,848.02,0.79448939]
[1756990945535,0.205072,848.65,848.0,0.79448939]
[1756990946038,0.92567001,848.65,848.0,0.79448939]
[1756990946239,0.72059801,848.64,847.99,0.79448939]
[1756990946438,0.205072,848.65,847.99,0.79448939]
[1756990946639,0.92567001,848.65,847.99,0.79448939]
[1756990946839,0.72059801,848.64,847.99,0.79448939]
[1756990947039,0.205072,848.65,847.99,0.79448939]
[1756990947640,0.205072,848.65,848.0,0.79448939]
[1756990948342,0.205072,848.65,847.99,0.79448939]
[1756990949438,0.205072,848.65,847.98,0.79448939]
[1756990950139,0.205072,848.65,847.91,0.79448939]
[1756990950443,0.205072,848.65,847.89,0.79448939]
[1756990951238,0.92545628,848.65,847.89,0.79448939]
[1756990951539,0.72038428,848.64,847.89,0.79448939]
[1756990952447,0.205072,848.65,847.88,0.79448939]
[1756990955549,0.205072,848.65,847.63,1.0607609]
[1756990955846,0.205072,848.65,847.87,0.79391477]
[1756990956244,0.205072,848.65,847.9,0.79391477]
[1756990956945,0.92545628,848.65,847.9,0.79391477]
[1756990957150,0.72038428,848.64,847.9,0.79391477]
[1756990957344,0.205072,848.65,847.9,0.79391477]
[1756990959749,0.205072,848.65,847.89,0.79391477]
[1756990960146,0.205072,848.65,847.88,0.79391477]
[1756990960545,0.92545628,848.65,847.88,0.79391477]
[1756990960747,0.72038428,848.64,847.88,0.79391477]
[1756990961448,0.72038428,848.64,847.89,0.79391477]
[1756990961649,0.205072,848.65,847.89,0.79391477]
[1756990965252,0.205072,848.65,847.53,0.20501099]
[1756990965253,0.205072,848.65,847.87,0.79391477]
[1756990966052,0.205072,848.65,847.86,0.79391477]
[1756990969056,0.205072,848.65,847.87,0.79391477]
[1756990969654,0.205072,848.65,847.88,0.79391477]
[1756990969852,0.92545628,848.65,847.88,0.79391477]
[1756990970053,0.72038428,848.64,847.88,0.79391477]
[1756990970452,0.72038428,848.64,847.9,0.79391477]
[1756990970860,0.72038428,848.64,847.91,0.79391477]
[1756990971757,0.205072,848.65,847.91,0.79391477]
[1756990972356,0.205072,848.65,847.92,0.79391477]
[1756990972660,0.205072,848.65,847.91,0.79391477]
[1756990973860,0.205072,848.65,847.94,0.79391477]
[1756990975158,0.205072,848.65,847.93,0.79391477]
[1756990975358,0.205072,848.65,847.95,0.79391477]
[1756990978365,0.205072,848.65,847.96,0.79391477]
[1756990978662,0.205072,848.65,847.95,0.79391477]
[1756990979368,0.205072,848.65,847.96,0.79391477]
[1756990980062,0.205072,848.65,847.74,1.0607609]
[1756990980063,0.205072,848.65,847.95,0.79391477]
[1756990980267,0.205072,848.65,847.94,0.79391477]
[1756990980964,0.205072,848.65,847.96,0.79391477]
[1756990982271,0.92545628,848.65,847.96,0.79391477]
[1756990982476,0.72038428,848.64,847.97,0.79391477]
[1756990982774,0.72038428,848.64,847.98,0.79391477]
[1756990982974,0.72038428,848.64,847.99,0.79391477]
[1756990983572,0.72038428,848.64,848.02,0.79391477]
[1756990984376,0.205072,848.65,848.02,0.79391477]
[1756990985177,0.205072,848.65,848.01,0.79391477]
[1756990985477,0.205072,848.65,848.07,0.79391477]
[1756990985678,0.205072,848.65,848.08,0.79391477]
[1756990987074,0.205072,848.65,848.07,0.79391477]
[1756990988677,0.205072,848.65,848.06,0.79391477]
[1756990990378,0.205072,848.65,848.04,0.79391477]
[1756990992078,0.205072,848.65,848.06,0.79391477]
[1756990992578,0.205072,848.65,848.05,0.79391477]
[1756990995379,0.205072,848.65,848.04,0.79391477]
[1756990997477,0.205072,848.65,848.05,0.79391477]
[1756990999878,0.205072,848.65,848.04,0.79391477]
[1756991000079,0.205072,848.65,848.05,0.79391477]
[1756991000284,0.205072,848.65,848.04,0.79391477]
[1756991002284,0.205072,848.65,848.05,0.79391477]
[1756991004195,0.205072,848.65,848.03,0.79391477]
[1756991005390,0.205072,848.65,848.02,0.79391477]
[1756991006988,0.205072,848.65,848.04,0.79391477]
[1756991009290,0.205072,848.65,848.05,0.79391477]
[1756991010294,0.205072,848.65,848.03,0.79391477]
[1756991011791,0.205072,848.65,848.05,0.79391477]
[1756991015399,0.205072,848.65,848.04,0.79391477]
[1756991016399,0.205072,848.65,848.06,0.79391477]
[1756991016699,0.205072,848.65,848.07,0.79391477]
[1756991018397,0.205072,848.65,848.08,0.79391477]
[1756991018799,0.205072,848.65,848.13,0.79391477]
[1756991019396,0.205072,848.65,848.14,0.79391477]
[1756991019597,0.205072,848.65,848.16,0.79391477]
[1756991019798,0.205072,848.65,848.19,0.79391477]
[1756991020403,0.205072,848.65,848.16,0.79391477]
[1756991025006,0.205072,848.65,848.18,0.79391477]
[1756991025204,0.205072,848.65,848.15,0.79391477]
[1756991025403,0.205072,848.65,848.12,0.79391477]
[1756991025706,0.205072,848.65,848.11,0.79391477]
[1756991029111,0.205072,848.65,848.12,0.79391477]
[1756991029915,0.205072,848.65,848.13,0.79391477]
[1756991030115,0.205072,848.65,848.14,0.79391477]
[1756991030314,0.205072,848.65,848.13,0.79391477]
[1756991032317,0.205072,848.65,848.14,0.79391477]
[1756991032815,0.205072,848.65,848.13,0.79391477]
[1756991033919,0.205072,848.65,848.14,0.79391477]
[1756991036120,0.205072,848.65,848.11,0.79391477]
[1756991036419,0.205072,848.65,847.6,0.20505145]
[1756991036420,0.205072,848.65,848.1,0.79391477]
[1756991037019,0.205072,848.65,848.07,0.79391477]
[1756991037322,0.205072,848.65,848.08,0.79391477]
[1756991037523,0.205072,848.65,848.07,0.79391477]
[1756991038721,0.205072,848.65,848.08,0.79391477]
[1756991039730,0.205072,848.65,848.12,0.79391477]
[1756991040322,0.205072,848.65,848.14,0.79391477]
[1756991040525,0.205072,848.65,848.13,0.79391477]
[1756991040727,0.205072,848.65,848.14,0.79431432]
[1756991041421,0.92630674,848.65,848.14,0.79431432]
[1756991041626,0.72123474,848.64,848.14,0.79431432]
[1756991041823,0.72155996,848.64,848.14,0.79431432]
[1756991043230,0.205072,848.65,848.14,0.79431432]
[1756991044233,0.205072,848.65,848.15,0.79431432]
[1756991049638,0.205072,848.65,848.14,0.79431432]
[1756991051136,0.205072,848.65,848.15,0.79431432]
[1756991051339,0.205072,848.65,848.14,0.79431432]
[1756991052037,0.205072,848.65,848.12,0.79431432]
[1756991052541,0.92680487,848.65,848.08,0.79431432]
[1756991052737,0.72173287,848.64,848.08,0.79431432]
[1756991052937,0.205072,848.65,848.08,0.79431432]
[1756991053739,0.205072,848.65,848.07,0.79431432]
[1756991054042,0.205072,848.65,848.08,0.79431432]
[1756991055539,0.205072,848.65,848.06,0.79431432]
[1756991056241,0.92680487,848.65,848.05,0.79431432]
[1756991056441,0.72173287,848.64,848.05,0.79431432]
[1756991056641,0.205072,848.65,848.05,0.79431432]
[1756991057438,0.205072,848.65,848.04,0.79431432]
[1756991058335,0.205072,848.65,848.05,0.79431432]
[1756991058535,0.205072,848.65,848.04,0.79431432]
[1756991059638,0.205072,848.65,847.99,0.79431432]
[1756991059938,0.205072,848.65,848.0,0.79431432]
[1756991060643,0.205072,848.65,847.99,0.79431432]
[1756991063345,0.205072,848.65,848.04,0.79431432]
[1756991063744,0.205072,848.65,848.05,0.79431432]
[1756991065645,0.205072,848.65,848.04,0.79431432]
[1756991066345,0.205072,848.65,848.03,0.79431432]
[1756991066545,0.205072,848.65,848.04,0.79431432]
[1756991066742,0.205072,848.65,848.03,0.79431432]
[1756991067243,0.205072,848.65,848.04,0.79431432]
[1756991067446,0.205072,848.65,848.06,0.79431432]
[1756991068346,0.205072,848.65,847.86,1.0607609]
[1756991068347,0.205072,848.65,848.07,0.79431432]
[1756991068546,0.205072,848.65,848.06,0.79431432]
[1756991069046,0.205072,848.65,848.09,0.79431432]
[1756991069244,0.205072,848.65,848.1,0.79431432]
[1756991069445,0.92666667,848.65,848.11,0.79431432]
[1756991069646,0.72159467,848.64,848.14,0.79431432]
[1756991069847,0.205072,848.65,848.14,0.79431432]
[1756991070047,0.205072,848.65,848.13,0.79431432]
[1756991070251,0.205072,848.65,847.6,0.20505145]
[1756991070252,0.205072,848.65,848.18,0.79431432]
[1756991070449,0.205072,848.65,848.16,0.79431432]
[1756991070648,0.205072,848.65,848.22,0.79431432]
[1756991070849,0.205072,848.65,848.24,0.79431432]
[1756991071248,0.72170246,848.84,848.22,0.79431432]
[1756991071549,0.20502186,848.77,848.32,0.79431432]
[1756991071848,0.20502186,848.77,848.37,0.79431432]
[1756991072049,0.20502186,848.77,848.36,0.79431432]
[1756991072349,0.20502186,848.77,848.35,0.79431432]
[1756991073052,0.20502186,848.77,848.34,0.79431432]
[1756991074051,0.20502186,848.77,848.35,0.79431432]
[1756991074448,0.20502186,848.77,848.36,0.79431432]
[1756991074651,0.20502186,848.77,848.35,0.79431432]
[1756991076355,0.20502186,848.77,848.34,0.79431432]
[1756991077357,0.20502186,848.77,848.33,0.79431432]
[1756991079356,0.20502186,848.77,848.32,0.79431432]
[1756991080353,0.20502186,848.77,848.31,0.79431432]
[1756991082158,0.20502186,848.77,848.3,0.79431432]
[1756991082461,0.20502186,848.77,848.29,0.79431432]
[1756991085259,0.20502186,848.77,848.28,0.79431432]
[1756991087362,0.20502186,848.77,848.27,0.79431432]
[1756991090366,0.20502186,848.77,848.26,0.79431432]
[1756991091269,0.20502186,848.77,848.27,0.79431432]
[1756991091866,0.20502186,848.77,848.26,0.79431432]
[1756991092971,0.20502186,848.77,848.11,1.0607609]
[1756991093173,0.20502186,848.77,848.25,0.79206071]
[1756991094370,0.20502186,848.77,848.24,0.79206071]
[1756991100979,0.20502186,848.77,848.25,0.79206071]
[1756991101188,0.20502186,848.77,848.26,0.79206071]
[1756991108089,0.20502186,848.77,848.28,0.79206071]
[1756991109091,0.20502186,848.77,848.27,0.79206071]
[1756991112996,0.20502186,848.77,848.26,0.79206071]
[1756991114391,0.20502186,848.77,848.27,0.79206071]
[1756991115393,0.20502186,848.77,848.28,0.79206071]
[1756991115597,0.20502186,848.77,848.27,0.79206071]
[1756991116298,0.20502186,848.77,848.28,0.79206071]
[1756991119398,0.20502186,848.77,848.29,0.79206071]
[1756991119699,0.20502186,848.77,848.3,0.79206071]
[1756991120500,0.20502186,848.77,848.14,1.0607609]
[1756991120501,0.20502186,848.77,848.31,0.79206071]
[1756991121600,0.20502186,848.77,848.32,0.79206071]
[1756991122298,0.20502186,848.77,848.33,0.79206071]
[1756991122602,0.20502186,848.77,848.32,0.79206071]
[1756991123204,0.20502186,848.77,848.31,0.79206071]
[1756991123398,0.20502186,848.77,848.32,0.79206071]
[1756991124402,0.20502186,848.77,848.33,0.79206071]
[1756991125405,0.20502186,848.77,848.34,0.79206071]
[1756991126201,0.20502186,848.77,848.35,0.79206071]
[1756991126403,0.20502186,848.77,848.39,0.79206071]
[1756991126603,0.20502186,848.77,848.4,0.79206071]
[1756991127215,0.72141836,849.02,848.41,0.79206071]
[1756991127402,0.20498623,848.9,848.42,0.79206071]
[1756991127603,0.20498623,848.9,848.45,0.79206071]
[1756991128508,0.20498623,848.9,848.46,0.79206071]
[1756991128705,0.20498623,848.9,848.49,0.79206071]
[1756991129404,0.20498623,848.9,848.51,0.79206071]
[1756991129606,0.20498623,848.9,848.54,0.79206071]
[1756991129806,0.20498623,848.9,848.53,0.79206071]
[1756991130406,0.20498623,848.9,848.54,0.79206071]
[1756991130608,0.20498623,848.9,848.53,0.79206071]
[1756991132407,0.20498623,848.9,848.52,0.79206071]
[1756991133207,0.20498623,848.9,848.51,0.79206071]
[1756991133908,0.20498623,848.9,848.55,0.79206071]
[1756991134409,0.20498623,848.9,848.54,0.79206071]
[1756991134812,0.20498623,848.9,848.55,0.79206071]
[1756991135308,0.20498623,848.9,848.54,0.79206071]
[1756991135511,0.20498623,848.9,848.55,0.79206071]
[1756991136309,0.20498623,848.9,848.54,0.79206071]
[1756991136612,0.20498623,848.9,848.55,0.79206071]
[1756991137310,0.20498623,848.9,848.54,0.79206071]
[1756991138409,0.20498623,848.9,848.53,0.79206071]
[1756991140214,0.20498623,848.9,848.52,0.79206071]
[1756991141127,0.72113657,849.15,848.55,0.79206071]
[1756991141312,0.72113657,849.21,848.6,0.79206071]
[1756991141513,0.20495605,849.02,848.59,0.79206071]
[1756991141716,0.20495605,849.02,848.55,0.79206071]
[1756991143514,0.20495605,849.02,848.54,0.79206071]
[1756991145316,0.20495605,849.02,848.36,1.0607609]
[1756991145619,0.20495605,849.02,848.53,0.79110578]
[1756991147417,0.20495605,849.02,848.56,0.79110578]
[1756991148321,0.20495605,849.02,848.55,0.79110578]
[1756991149119,0.20495605,849.02,848.56,0.79110578]
[1756991149331,0.20495605,849.02,848.55,0.79110578]
[1756991149631,0.79237564,849.35,848.51,0.79110578]
[1756991149831,0.72112091,849.34,848.48,0.79110578]
[1756991150119,0.20493855,849.15,848.55,0.79110578]
[1756991150321,0.20493855,849.15,848.54,0.79110578]
[1756991155924,0.20493855,849.15,848.55,0.79110578]
[1756991156820,0.20493855,849.15,848.35,1.0607609]
[1756991156821,0.20493855,849.15,848.54,0.79110578]
[1756991157222,0.20493855,849.15,848.35,1.0607609]
[1756991157420,0.20493855,849.15,848.6,0.79016575]
[1756991158326,0.20493855,849.15,848.59,0.79016575]
[1756991161627,0.20493855,849.15,848.55,0.79016575]
[1756991162025,0.20493855,849.15,848.54,0.79016575]
[1756991164327,0.20493855,849.15,848.53,0.79016575]
[1756991165229,0.20493855,849.15,848.54,0.79016575]
[1756991169933,0.20493855,849.15,848.53,0.79016575]
[1756991170430,0.20493855,849.15,848.54,0.79016575]
[1756991171331,0.20493855,849.15,848.56,0.79016575]
[1756991172028,0.20493855,849.15,848.58,0.79016575]
[1756991172231,0.20493855,849.15,847.6,0.20505145]
[1756991172232,0.20493855,849.15,848.59,0.79016575]
[1756991173154,0.20493855,849.15,848.58,0.79016575]
[1756991174330,0.20493855,849.15,848.59,0.79016575]
[1756991176235,0.20493855,849.15,848.6,0.79016575]
[1756991178436,0.20493855,849.15,848.61,0.79016575]
[1756991178736,0.20493855,849.15,848.6,0.79016575]
[1756991179341,0.20493855,849.15,848.61,0.79016575]
[1756991179838,0.20493855,849.15,848.62,0.79016575]
[1756991180236,0.20493855,849.15,847.66,2.6392474]
[1756991180237,0.20493855,849.15,848.63,0.79016575]
[1756991181437,0.20493855,849.15,847.67,2.6392474]
[1756991181438,0.20493855,849.15,848.61,0.79016575]
[1756991182140,0.20493855,849.15,848.6,0.79016575]
[1756991182341,0.20493855,849.15,848.61,0.79016575]
[1756991183141,0.20493855,849.15,848.62,0.79016575]
[1756991183345,0.20493855,849.15,848.63,0.79016575]
[1756991185749,0.20493855,849.15,848.61,0.79016575]
[1756991186347,0.20493855,849.15,848.62,0.79016575]
[1756991187248,0.20493855,849.15,848.63,0.79016575]
[1756991188752,0.20493855,849.15,848.64,0.79016575]
[1756991190349,0.20493855,849.15,848.65,0.79016575]
[1756991190749,0.20493855,849.15,848.63,0.79016575]
[1756991191251,0.20493855,849.15,848.64,0.79016575]
[1756991193254,0.20493855,849.15,848.65,0.79016575]
[1756991194553,0.20493855,849.15,848.66,0.79016575]
[1756991197752,0.20493855,849.15,848.67,0.79016575]
[1756991200357,0.20493855,849.15,848.68,0.79016575]
[1756991200862,0.20493855,849.15,847.6,0.20505145]
[1756991200863,0.20493855,849.15,848.67,0.79016575]
[1756991201361,0.20493855,849.15,848.68,0.79016575]
[1756991202457,0.20493855,849.15,848.69,0.79016575]
[1756991205665,0.20493855,849.15,848.71,0.79016575]
[1756991205865,0.20493855,849.15,848.69,0.79016575]
[1756991206263,0.20493855,849.15,848.7,0.79016575]
[1756991207962,0.20493855,849.15,848.69,0.79016575]
[1756991208267,0.20493855,849.15,848.7,0.79016575]
[1756991209264,0.20493855,849.15,848.71,0.79016575]
[1756991209765,0.92764386,849.15,848.51,0.79016575]
[1756991210065,0.92764386,849.15,848.55,0.79016575]
[1756991210066,0.72270531,849.14,848.55,0.79016575]
[1756991210374,0.72270531,849.14,847.6,0.20505145]
[1756991210375,0.72270531,849.13,848.53,0.79016575]
[1756991210569,0.72270531,849.12,848.53,0.79016575]
[1756991210765,0.72270531,849.11,848.53,0.79016575]
[1756991211068,0.72270531,849.1,848.53,0.79016575]
[1756991211369,0.72270531,849.09,848.52,0.79016575]
[1756991211569,0.72270531,849.08,848.52,0.79016575]
[1756991211768,0.72270531,849.07,848.52,0.79016575]
[1756991212069,0.72270531,849.06,848.52,0.79016575]
[1756991212269,0.20493855,849.15,848.51,0.79016575]
[1756991213768,0.20493855,849.15,848.5,0.79016575]
[1756991214266,0.20493855,849.15,848.49,0.79016575]
[1756991216370,0.20493855,849.15,848.48,0.79016575]
[1756991218164,0.20493855,849.15,848.5,0.79016575]
[1756991218867,0.92687338,849.15,848.5,0.79016575]
[1756991219065,0.72193483,849.14,848.5,0.79016575]
[1756991219270,0.72193483,849.13,848.49,0.79016575]
[1756991219472,0.72193483,849.12,848.49,0.79016575]
[1756991219671,0.72193483,849.11,848.49,0.79016575]
[1756991219972,0.72193483,849.1,848.48,0.79016575]
[1756991220271,0.72193483,849.09,848.48,0.79016575]
[1756991220472,0.72193483,849.08,848.48,0.79016575]
[1756991220672,0.72193483,849.07,848.48,0.79016575]
[1756991220872,0.20493855,849.15,848.46,0.79016575]
[1756991221474,0.20493855,849.15,848.45,0.79016575]
[1756991221975,0.20493855,849.15,848.47,0.79016575]
[1756991222274,0.20493855,849.15,848.46,0.79016575]
[1756991223373,0.92637952,849.15,848.46,0.79016575]
[1756991223677,0.72144097,849.14,848.46,0.79016575]
[1756991223878,0.20493855,849.15,848.46,0.79016575]
[1756991225478,0.20493855,849.15,848.45,0.79016575]
[1756991225877,0.20493855,849.15,848.42,0.79016575]
[1756991226476,0.92637952,849.15,848.42,0.79016575]
[1756991226675,0.72144097,849.14,848.42,0.79016575]
[1756991226876,0.20493855,849.15,848.42,0.79016575]
[1756991227481,0.20493855,849.15,848.41,0.79016575]
[1756991227882,0.20493855,849.15,848.4,0.79016575]
[1756991229182,0.20493855,849.15,848.39,0.79016575]
[1756991230583,0.20493855,849.15,848.38,0.79016575]
[1756991231081,0.72144097,849.21,848.37,0.79016575]
[1756991231284,0.72144097,849.28,848.37,0.79016575]
[1756991231580,0.72144097,849.28,848.36,0.79016575]
[1756991232180,0.79149484,849.27,848.37,0.79016575]
[1756991232479,0.72144097,849.26,848.38,0.79016575]
[1756991233179,0.72144097,849.26,848.37,0.79016575]
[1756991233680,0.72144097,849.26,848.14,1.0607609]
[1756991233681,1.51293581,849.27,848.38,0.79016575]
[1756991233981,0.72144097,849.26,848.38,0.79016575]
[1756991234182,0.72144097,849.26,848.37,0.79016575]
[1756991234781,0.72144097,849.26,848.38,0.79016575]
[1756991235083,0.20498019,849.05,848.37,0.79016575]
[1756991235884,0.20498019,849.05,848.36,0.79016575]
[1756991236782,0.20498019,849.05,848.38,0.79016575]
[1756991239286,0.20498019,849.05,848.39,0.79016575]
[1756991239485,0.20498019,849.05,848.42,0.79016575]
[1756991239684,0.20498019,849.05,848.45,0.79016575]
[1756991240884,0.20498019,849.05,848.43,0.79016575]
[1756991241081,0.20498019,849.05,848.47,0.79016575]
[1756991241282,0.20498019,849.05,848.48,0.79016575]
[1756991245887,0.20498019,849.05,848.46,0.79016575]
[1756991247098,0.20498019,849.05,848.41,0.79016575]
[1756991247391,0.20498019,849.05,848.4,0.79016575]
[1756991248590,0.20498019,849.05,848.38,0.79016575]
[1756991248792,0.20498019,849.05,848.37,0.79016575]
[1756991248996,0.20498019,849.05,848.36,0.79016575]
[1756991250694,0.20498019,849.05,848.35,0.79016575]
[1756991252496,0.20498019,849.05,848.36,0.79016575]
[1756991253900,0.92506955,849.05,848.36,0.79016575]
[1756991254195,0.72008936,849.04,848.36,0.79016575]
[1756991254700,0.20498019,849.05,848.36,0.79016575]
[1756991254896,0.20498019,849.05,848.16,1.0607609]
[1756991254897,0.20498019,849.05,848.37,0.79016575]
[1756991255901,0.20498019,849.05,848.36,0.79016575]
[1756991256100,0.20498019,849.05,848.34,0.79016575]
[1756991256304,0.20498019,849.05,848.33,0.79016575]
[1756991256498,0.20498019,849.05,848.12,1.0607609]
[1756991256499,0.20498019,849.05,848.32,0.79016575]
[1756991257300,0.20498019,849.05,848.33,0.79016575]
[1756991260204,0.20498019,849.05,848.34,0.79016575]
[1756991262211,0.20498019,849.05,848.35,0.79016575]
[1756991262510,0.20498019,849.05,848.34,0.79016575]
[1756991262810,0.20498019,849.05,848.35,0.79016575]
[1756991263309,0.20498019,849.05,848.17,1.0607609]
[1756991263310,0.20498019,849.05,848.36,0.79016575]
[1756991264306,0.20498019,849.05,848.37,0.79016575]
[1756991264710,0.20498019,849.05,848.36,0.79016575]
[1756991265308,0.20498019,849.05,848.37,0.79016575]
[1756991265508,0.20498019,849.05,848.36,0.79016575]
[1756991265709,0.20498019,849.05,848.34,0.79016575]
[1756991265908,0.20498019,849.05,847.74,0.20498019]
[1756991265909,0.20498019,849.05,848.33,0.79016575]
[1756991266211,0.9250496,849.05,848.33,0.79016575]
[1756991266410,0.72006941,849.04,848.33,0.79016575]
[1756991266811,0.20498019,849.05,848.33,0.79016575]
[1756991267112,0.20498019,849.05,848.32,0.79016575]
[1756991267313,0.20498019,849.05,848.33,0.79016575]
[1756991269114,0.20498019,849.05,848.34,0.79016575]
[1756991270514,0.20498019,849.05,848.35,0.79016575]
[1756991271108,0.92526257,849.05,848.35,0.79016575]
[1756991271915,0.92526257,849.05,848.3,0.79016575]
[1756991272115,0.72028238,849.04,848.31,0.79016575]
[1756991272920,0.20498019,849.05,848.31,0.79016575]